{"text_format":"1","workbook":"xlsx","n_sheets":6,"sheets":["Stavba","300 3390300 KL","300 3390300 Rek","300 3390300 Pol","M21Č_Elektroinstalace","OaVNS"],"not_rendered":{"charts":0,"images":0,"macros":0,"external_links":0,"defined_names":34,"comments":0,"pivot_tables":0},"unopened":[],"bounds":{"document_bytes":16777216,"sheet_cells":100000,"rows_first":2000,"rows_last":500,"rows_between":2000,"halvings":0,"cell_chars":16384,"cell_head_chars":4096},"cells_cut":0,"cells_raw":0,"read":"whole","date_system":"1900"}

{"sheet":"Stavba","index":0,"n_rows":38,"n_cols":10,"rows_kept":38,"cut":false,"hidden":false,"merged":[[18,8,18,9],[19,8,19,9],[20,8,20,9],[21,8,21,9],[22,8,22,9]]}
[]
[null,null,"Položkový rozpočet stavby",null,null,null,null,"Datum: ",{"$f":"TODAY()","v":"2024-04-22"}]
[null,null,null," "]
[]
[null,null,"Stavba :","3391","Chuchelna  - výměna technologie ČOV"]
[]
[null,null,"Objednatel : ","Vodohospodářské sdružení Turnov",null,null,null,"IČO :","49295934"]
[null,null,null,"Antonína Dvořáka 287",null,null,null,"DIČ :","CZ49295934"]
[null,null,"51101","Turnov"]
[]
[null,null,"Zhotovitel : ",".",null,null,null,"IČO :"]
[null,null,null,null,null,null,null,"DIČ :"]
[]
[null,null,"Za zhotovitele :",null,null,null,null,"Za objednatele :"]
[]
[null,null,"_______________",null,null,null,null,"_______________"]
[]
[null,null,null,null,null,null,null,null,null,"Rozpočtové náklady"]
[null,"Základ pro DPH",null,15,"%",null,null,null,{"$f":"ROUND(G32,0)","v":0}]
[null,"DPH ",null,{"$f":"SazbaDPH1","v":15},"%",null,null,null,{"$f":"ROUND(I19*D20/100,0)","v":0}]
[null,"Základ pro DPH",null,21,"%",null,null,null,{"$f":"ROUND(H32,0)","v":50000}]
[null,"DPH ",null,{"$f":"SazbaDPH2","v":21},"%",null,null,null,{"$f":"ROUND(I21*D21/100,0)","v":10500}]
[null,"Cena celkem za stavbu",null,null,null,null,null,null,{"$f":"SUM(I19:I22)","v":60500}]
[]
[]
[null,"Rekapitulace stavebních objektů a provozních souborů"]
[]
[null,"Číslo a název objektu / provozního souboru",null,null,null,"Cena celkem",{"$f":"CONCATENATE(\"Základ DPH \",SazbaDPH1,\" %\")","v":"Základ DPH 15 %"},{"$f":"CONCATENATE(\"Základ DPH \",SazbaDPH2,\" %\")","v":"Základ DPH 21 %"},"DPH celkem","%"]
[null,"300","Oprava a doplnění stávající ČOV",null,null,{"$f":"G29+H29+I29","v":0},0,{"$f":"SUM(H37)","v":0},{"$f":"(G29*SazbaDPH1)/100+(H29*SazbaDPH2)/100","v":0},{"$f":"IF(CelkemObjekty=0,\"\",F29/CelkemObjekty*100)","v":0}]
[null,"OaVNS","Ostatní a vedlejší náklady stavby",null,null,{"$f":"G30+H30+I30","v":0},0,{"$f":"SUM(OaVNS!G22)","v":0},0,0]
[null,"PR","Povinná rezerva",null,null,60500,0,50000,10500,100]
[null,"Celkem za stavbu",null,null,null,{"$f":"SUM(F29:F31)","v":60500},{"$f":"SUM(G29:G31)","v":0},{"$f":"SUM(H29:H31)","v":50000},{"$f":"SUM(I29:I31)","v":10500},{"$f":"IF(CelkemObjekty=0,\"\",F32/CelkemObjekty*100)","v":100}]
[]
[null,"Rekapitulace stavebních rozpočtů"]
[]
[null,"Číslo objektu","Číslo a název rozpočtu",null,null,"Cena celkem",{"$f":"CONCATENATE(\"Základ DPH \",SazbaDPH1,\" %\")","v":"Základ DPH 15 %"},{"$f":"CONCATENATE(\"Základ DPH \",SazbaDPH2,\" %\")","v":"Základ DPH 21 %"},"DPH celkem","%"]
[null,"300","3390/300 Oprava a doplnění stávající ČOV",null,null,{"$f":"G37+H37+I37","v":0},0,{"$f":"SUM('300 3390300 KL'!C23)","v":0},{"$f":"(G37*SazbaDPH1)/100+(H37*SazbaDPH2)/100","v":0},{"$f":"IF(CelkemObjekty=0,\"\",F37/CelkemObjekty*100)","v":0}]
[null,"Celkem za stavbu",null,null,null,{"$f":"SUM(F37:F37)","v":0},{"$f":"SUM(G37:G37)","v":0},{"$f":"SUM(H37:H37)","v":0},{"$f":"SUM(I37:I37)","v":0},{"$f":"IF(CelkemObjekty=0,\"\",F38/CelkemObjekty*100)","v":0}]

{"sheet":"300 3390300 KL","index":1,"n_rows":45,"n_cols":8,"rows_kept":45,"cut":false,"hidden":false,"merged":[[50,1,50,6],[29,5,29,6],[30,5,30,6],[31,5,31,6],[32,5,32,6],[33,5,33,6],[36,1,44,6],[45,1,45,6],[46,1,46,6],[47,1,47,6],[48,1,48,6],[49,1,49,6],[22,0,22,1],[7,2,7,4],[8,2,8,4],[9,2,9,4],[10,2,10,4],[11,2,11,4]]}
["POLOŽKOVÝ ROZPOČET"]
["Rozpočet",null,"3390/300","Oprava a doplnění stávající ČOV",null,"JKSO ","814.19"]
[]
["Objekt",null,null,null,null,"SKP "]
["300",null,"Oprava a doplnění stávající ČOV",null,null,"Měrná jednotka","m3"]
["Stavba",null,null,null,null,"Počet jednotek",0]
["3391",null,"Oprava a doplnění stávající ČOV Chuchelna",null,null,"Náklady na m.j.",{"$f":"IF(G6=0,,ROUND((F30+F32)/G6,1))","v":0}]
["Projektant",null,"BMTO GROUP a.s.",null,null,"Typ rozpočtu"]
["Zpracovatel projektu"]
["Objednatel",null,"Vodohospodářské sdružení Turnov"]
["Dodavatel",null,".",null,null,"Zakázkové číslo "]
["Rozpočtoval",null,null,null,null,"Počet listů"]
["ROZPOČTOVÉ NÁKLADY"]
["Základní rozpočtové náklady"]
[null,"HSV celkem",{"$f":"'300 3390300 Rek'!E17","v":0}]
["Z","PSV celkem",{"$f":"'300 3390300 Rek'!F17","v":0}]
["R","M práce celkem",{"$f":"'300 3390300 Rek'!H17","v":0}]
["N","M dodávky celkem",{"$f":"'300 3390300 Rek'!G17","v":0}]
["ZRN celkem",null,{"$f":"SUM(C15:C18)","v":0}]
[]
["HZS",null,{"$f":"'300 3390300 Rek'!I17","v":0}]
["ZRN+HZS",null,{"$f":"C19+C21","v":0}]
["ZRN+ost.náklady+HZS",null,{"$f":"C22+G23","v":0}]
["Vypracoval",null,null,"Za zhotovitele",null,"Za objednatele"]
["Jméno :",null,null,"Jméno :",null,"Jméno :"]
["Datum :",null,null,"Datum :",null,"Datum :"]
[]
["Podpis :",null,null,"Podpis:",null,"Podpis:"]
[]
["Základ pro DPH",null,21,"%  ",null,{"$f":"C23-F32","v":0}]
["DPH",null,{"$f":"C30","v":21},"% ",null,{"$f":"ROUND(PRODUCT(F30,C31/100),0)","v":0}]
["Základ pro DPH",null,0,"% ",null,0]
["DPH",null,{"$f":"C32","v":0},"% ",null,{"$f":"ROUND(PRODUCT(F32,C33/100),0)","v":0}]
["CENA ZA OBJEKT CELKEM",null,null,null,null,{"$f":"ROUND(SUM(F30:F33),0)","v":0}]
[]
["Poznámka :",null,null,null,null,null,null," "]
[null,null,null,null,null,null,null," "]
[null,null,null,null,null,null,null," "]
[null,null,null,null,null,null,null," "]
[null,null,null,null,null,null,null," "]
[null,null,null,null,null,null,null," "]
[null,null,null,null,null,null,null," "]
[null,null,null,null,null,null,null," "]
[null,null,null,null,null,null,null," "]
[null,null,null,null,null,null,null," "]

{"sheet":"300 3390300 Rek","index":2,"n_rows":17,"n_cols":9,"rows_kept":17,"cut":false,"hidden":false,"merged":[[0,0,0,1],[1,0,1,1],[1,6,1,8]]}
["Stavba :",null,"3391 Chuchelna - výměna technologie ČOV",null,null,null,"Rozpočet :","3390/300"]
["Objekt :",null,"300 Chuchelna - výměna technologie ČOV",null,null,null,"Oprava a doplnění stávající ČOV"]
[]
["REKAPITULACE  STAVEBNÍCH  DÍLŮ"]
[]
[null,"Stavební díl",null,null,"HSV","PSV","Dodávka","Montáž","HZS"]
[{"$f":"'300 3390300 Pol'!B7","v":"1"},{"$f":"'300 3390300 Pol'!C7","v":"Zemní práce"},null,null,{"$f":"'300 3390300 Pol'!BA40","v":0},{"$f":"'300 3390300 Pol'!BB40","v":0},{"$f":"'300 3390300 Pol'!BC40","v":0},{"$f":"'300 3390300 Pol'!BD40","v":0},{"$f":"'300 3390300 Pol'!BE40","v":0}]
[{"$f":"'300 3390300 Pol'!B41","v":"3"},{"$f":"'300 3390300 Pol'!C41","v":"Svislé a kompletní konstrukce"},null,null,{"$f":"'300 3390300 Pol'!BA48","v":0},{"$f":"'300 3390300 Pol'!BB48","v":0},{"$f":"'300 3390300 Pol'!BC48","v":0},{"$f":"'300 3390300 Pol'!BD48","v":0},{"$f":"'300 3390300 Pol'!BE48","v":0}]
[{"$f":"'300 3390300 Pol'!B49","v":"38"},{"$f":"'300 3390300 Pol'!C49","v":"Kompletní konstrukce"},null,null,{"$f":"'300 3390300 Pol'!BA55","v":0},{"$f":"'300 3390300 Pol'!BB55","v":0},{"$f":"'300 3390300 Pol'!BC55","v":0},{"$f":"'300 3390300 Pol'!BD55","v":0},{"$f":"'300 3390300 Pol'!BE55","v":0}]
[{"$f":"'300 3390300 Pol'!B56","v":"45"},{"$f":"'300 3390300 Pol'!C56","v":"Podkladní a vedlejší konstrukce"},null,null,{"$f":"'300 3390300 Pol'!BA59","v":0},{"$f":"'300 3390300 Pol'!BB59","v":0},{"$f":"'300 3390300 Pol'!BC59","v":0},{"$f":"'300 3390300 Pol'!BD59","v":0},{"$f":"'300 3390300 Pol'!BE59","v":0}]
[{"$f":"'300 3390300 Pol'!B60","v":"8"},{"$f":"'300 3390300 Pol'!C60","v":"Trubní vedení"},null,null,{"$f":"'300 3390300 Pol'!BA68","v":0},{"$f":"'300 3390300 Pol'!BB68","v":0},{"$f":"'300 3390300 Pol'!BC68","v":0},{"$f":"'300 3390300 Pol'!BD68","v":0},{"$f":"'300 3390300 Pol'!BE68","v":0}]
[{"$f":"'300 3390300 Pol'!B69","v":"99"},{"$f":"'300 3390300 Pol'!C69","v":"Staveništní přesun hmot"},null,null,{"$f":"'300 3390300 Pol'!BA71","v":0},{"$f":"'300 3390300 Pol'!BB71","v":0},{"$f":"'300 3390300 Pol'!BC71","v":0},{"$f":"'300 3390300 Pol'!BD71","v":0},{"$f":"'300 3390300 Pol'!BE71","v":0}]
[{"$f":"'300 3390300 Pol'!B72","v":"762"},{"$f":"'300 3390300 Pol'!C72","v":"Konstrukce tesařské"},null,null,{"$f":"'300 3390300 Pol'!BA74","v":0},{"$f":"'300 3390300 Pol'!BB74","v":0},{"$f":"'300 3390300 Pol'!BC74","v":0},{"$f":"'300 3390300 Pol'!BD74","v":0},{"$f":"'300 3390300 Pol'!BE74","v":0}]
[{"$f":"'300 3390300 Pol'!B75","v":"767"},{"$f":"'300 3390300 Pol'!C75","v":"Konstrukce zámečnické"},null,null,{"$f":"'300 3390300 Pol'!BA81","v":0},{"$f":"'300 3390300 Pol'!BB81","v":0},{"$f":"'300 3390300 Pol'!BC81","v":0},{"$f":"'300 3390300 Pol'!BD81","v":0},{"$f":"'300 3390300 Pol'!BE81","v":0}]
[{"$f":"'300 3390300 Pol'!B82","v":"M21Č"},{"$f":"'300 3390300 Pol'!C82","v":"Elektromontáže ČOV"},null,null,{"$f":"'300 3390300 Pol'!BA84","v":0},{"$f":"'300 3390300 Pol'!BB84","v":0},{"$f":"'300 3390300 Pol'!BC84","v":0},{"$f":"'300 3390300 Pol'!BD84","v":0},{"$f":"'300 3390300 Pol'!BE84","v":0}]
[{"$f":"'300 3390300 Pol'!B85","v":"M35.4"},{"$f":"'300 3390300 Pol'!C85","v":"Technologie ČOV"},null,null,{"$f":"'300 3390300 Pol'!BA99","v":0},{"$f":"'300 3390300 Pol'!BB99","v":0},{"$f":"'300 3390300 Pol'!BC99","v":0},{"$f":"'300 3390300 Pol'!BD99","v":0},{"$f":"'300 3390300 Pol'!BE99","v":0}]
[null,"CELKEM  OBJEKT",null,null,{"$f":"SUM(E7:E16)","v":0},{"$f":"SUM(F7:F16)","v":0},{"$f":"SUM(G7:G16)","v":0},{"$f":"SUM(H7:H16)","v":0},{"$f":"SUM(I7:I16)","v":0}]

{"sheet":"300 3390300 Pol","index":3,"n_rows":99,"n_cols":80,"rows_kept":99,"cut":false,"hidden":false,"merged":[[94,2,94,6],[95,2,95,6],[97,2,97,6],[76,2,76,3],[78,2,78,6],[79,2,79,3],[86,2,86,6],[87,2,87,6],[88,2,88,6],[90,2,90,6],[91,2,91,6],[66,2,66,3],[57,2,57,3],[61,2,61,6],[62,2,62,6],[63,2,63,6],[64,2,64,6],[65,2,65,6],[50,2,50,3],[51,2,51,3],[52,2,52,3],[53,2,53,3],[36,2,36,3],[38,2,38,3],[42,2,42,3],[43,2,43,3],[44,2,44,3],[45,2,45,3],[46,2,46,3],[35,2,35,3],[20,2,20,3],[21,2,21,3],[23,2,23,3],[24,2,24,3],[25,2,25,3],[27,2,27,3],[28,2,28,3],[29,2,29,3],[31,2,31,3],[33,2,33,3],[34,2,34,3],[19,2,19,3],[0,0,0,6],[2,0,2,1],[3,0,3,1],[3,4,3,6],[8,2,8,3],[9,2,9,3],[11,2,11,3],[12,2,12,3],[13,2,13,3],[14,2,14,3],[15,2,15,3],[16,2,16,3],[18,2,18,3]]}
["Položkový rozpočet "]
[]
["Stavba :",null,"3391 Chuchelna - výměna technologie ČOV",null,"Rozpočet:",{"$f":"'300 3390300 Rek'!H1","v":"3390/300"}]
["Objekt :",null,"300 Chuchelna - výměna technologie ČOV",null,{"$f":"'300 3390300 Rek'!G2","v":"Oprava a doplnění stávající ČOV"}]
[]
["P.č.","Číslo položky","Název položky","MJ","množství","cena / MJ","celkem (Kč)","Jednotková hmotnost","Celková hmotnost","Jednotková dem.hmot.","Celková dem.hmot."]
["Díl:","1","Zemní práce",null,null,null,null,null,null,null,null,null,null,null,1]
[1,"139601102R00","Ruční výkop jam, rýh a šachet v hornině tř. 3 ","m3",20.8,0,{"$f":"E8*F8","v":0},0,{"$f":"E8*H8","v":0},0,{"$f":"E8*J8","v":0},null,null,null,2,null,null,null,null,null,null,null,null,null,null,null,1,1,1,null,null,null,null,null,null,null,null,null,null,null,null,null,null,null,null,null,null,null,null,null,null,1,{"$f":"IF(AZ8=1,G8,0)","v":0},{"$f":"IF(AZ8=2,G8,0)","v":0},{"$f":"IF(AZ8=3,G8,0)","v":0},{"$f":"IF(AZ8=4,G8,0)","v":0},{"$f":"IF(AZ8=5,G8,0)","v":0},null,null,null,null,null,null,null,null,null,null,null,null,null,null,null,null,null,null,null,null,null,1,1]
[null,null,"ČOV - výkopy pro dmychadlo, potrubí :3,20*3,00*1,50",null,14.4,null,null,null,null,null,null,null,"ČOV - výkopy pro dmychadlo, potrubí :3,20*3,00*1,50"]
[null,null,"ČOV -výkopy pro RŠ:1,60*1,60*2,50",null,6.4,null,null,null,null,null,null,null,"ČOV -výkopy pro RŠ:1,60*1,60*2,50"]
[2,"162201203R00","Vodorovné přemíst.výkopku, kolečko hor.1-4, do 10m ","m3",31.1,0,{"$f":"E11*F11","v":0},0,{"$f":"E11*H11","v":0},0,{"$f":"E11*J11","v":0},null,null,null,2,null,null,null,null,null,null,null,null,null,null,null,1,1,1,null,null,null,null,null,null,null,null,null,null,null,null,null,null,null,null,null,null,null,null,null,null,1,{"$f":"IF(AZ11=1,G11,0)","v":0},{"$f":"IF(AZ11=2,G11,0)","v":0},{"$f":"IF(AZ11=3,G11,0)","v":0},{"$f":"IF(AZ11=4,G11,0)","v":0},{"$f":"IF(AZ11=5,G11,0)","v":0},null,null,null,null,null,null,null,null,null,null,null,null,null,null,null,null,null,null,null,null,null,1,1]
[null,null,"Výkopy:",null,0,0,null,null,null,null,null,null,"Výkopy:"]
[null,null,"ČOV - výkopy pro dmychadlo, potrubí :3,20*3,00*1,50",null,14.4,null,null,null,null,null,null,null,"ČOV - výkopy pro dmychadlo, potrubí :3,20*3,00*1,50"]
[null,null,"ČOV -výkopy pro RŠ:1,60*1,60*2,50",null,6.4,null,null,null,null,null,null,null,"ČOV -výkopy pro RŠ:1,60*1,60*2,50"]
[null,null,"Zemina pro zásypy:",null,0,null,null,null,null,null,null,null,"Zemina pro zásypy:"]
[null,null,"Výkop:20,8000",null,20.8,null,null,null,null,null,null,null,"Výkop:20,8000"]
[null,null,"Odpočet objemu konstrukcí, lože, potrubí a obsypů:-10,5000",null,-10.5,null,null,null,null,null,null,null,"Odpočet objemu konstrukcí, lože, potrubí a obsypů:-10,5000"]
[3,"162701105RSZ","Vodorovné přemístění výkopku z hor.1-7 na skládku zhotovitele","m3",10.5,0,{"$f":"E18*F18","v":0},0,{"$f":"E18*H18","v":0},0,{"$f":"E18*J18","v":0},null,null,null,2,null,null,null,null,null,null,null,null,null,null,null,1,1,1,null,null,null,null,null,null,null,null,null,null,null,null,null,null,null,null,null,null,null,null,null,null,1,{"$f":"IF(AZ18=1,G18,0)","v":0},{"$f":"IF(AZ18=2,G18,0)","v":0},{"$f":"IF(AZ18=3,G18,0)","v":0},{"$f":"IF(AZ18=4,G18,0)","v":0},{"$f":"IF(AZ18=5,G18,0)","v":0},null,null,null,null,null,null,null,null,null,null,null,null,null,null,null,null,null,null,null,null,null,1,1]
[null,null,"Výkopy:",null,0,null,null,null,null,null,null,null,"Výkopy:"]
[null,null,"ČOV - výkopy pro dmychadlo, potrubí :3,20*3,00*1,50",null,14.4,null,null,null,null,null,null,null,"ČOV - výkopy pro dmychadlo, potrubí :3,20*3,00*1,50"]
[null,null,"ČOV -výkopy pro RŠ:1,60*1,60*2,50",null,6.4,null,null,null,null,null,null,null,"ČOV -výkopy pro RŠ:1,60*1,60*2,50"]
[null,null,"Odpočet zásypů zeminou:-10,3000",null,-10.3,null,null,null,null,null,null,null,"Odpočet zásypů zeminou:-10,3000"]
[4,"167101101R00","Nakládání výkopku z hor.1-4 v množství do 100 m3 ","m3",20.8,0,{"$f":"E23*F23","v":0},0,{"$f":"E23*H23","v":0},0,{"$f":"E23*J23","v":0},null,null,null,2,null,null,null,null,null,null,null,null,null,null,null,1,1,1,null,null,null,null,null,null,null,null,null,null,null,null,null,null,null,null,null,null,null,null,null,null,1,{"$f":"IF(AZ23=1,G23,0)","v":0},{"$f":"IF(AZ23=2,G23,0)","v":0},{"$f":"IF(AZ23=3,G23,0)","v":0},{"$f":"IF(AZ23=4,G23,0)","v":0},{"$f":"IF(AZ23=5,G23,0)","v":0},null,null,null,null,null,null,null,null,null,null,null,null,null,null,null,null,null,null,null,null,null,1,1]
[null,null,"Výkopy:",null,0,null,null,null,null,null,null,null,"Výkopy:"]
[null,null,"ČOV - výkopy pro dmychadlo, potrubí :3,20*3,00*1,50",null,14.4,null,null,null,null,null,null,null,"ČOV - výkopy pro dmychadlo, potrubí :3,20*3,00*1,50"]
[null,null,"ČOV -výkopy pro RŠ:1,60*1,60*2,50",null,6.4,null,null,null,null,null,null,null,"ČOV -výkopy pro RŠ:1,60*1,60*2,50"]
[5,"174101102R00","Zásyp ruční se zhutněním ","m3",10.3,0,{"$f":"E27*F27","v":0},0,{"$f":"E27*H27","v":0},0,{"$f":"E27*J27","v":0},null,null,null,2,null,null,null,null,null,null,null,null,null,null,null,1,1,1,null,null,null,null,null,null,null,null,null,null,null,null,null,null,null,null,null,null,null,null,null,null,1,{"$f":"IF(AZ27=1,G27,0)","v":0},{"$f":"IF(AZ27=2,G27,0)","v":0},{"$f":"IF(AZ27=3,G27,0)","v":0},{"$f":"IF(AZ27=4,G27,0)","v":0},{"$f":"IF(AZ27=5,G27,0)","v":0},null,null,null,null,null,null,null,null,null,null,null,null,null,null,null,null,null,null,null,null,null,1,1]
[null,null,"Zemina pro zásypy:",null,0,null,null,null,null,null,null,null,"Zemina pro zásypy:"]
[null,null,"Výkop:20,8000",null,20.8,null,null,null,null,null,null,null,"Výkop:20,8000"]
[null,null,"Odpočet objemu konstrukcí, lože, potrubí a obsypů:-10,5000",null,-10.5,null,null,null,null,null,null,null,"Odpočet objemu konstrukcí, lože, potrubí a obsypů:-10,5000"]
[6,"175101101R00","Obsyp potrubí bez prohození sypaniny ","m3",2.65,0,{"$f":"E31*F31","v":0},0,{"$f":"E31*H31","v":0},0,{"$f":"E31*J31","v":0},null,null,null,2,null,null,null,null,null,null,null,null,null,null,null,1,1,1,null,null,null,null,null,null,null,null,null,null,null,null,null,null,null,null,null,null,null,null,null,null,1,{"$f":"IF(AZ31=1,G31,0)","v":0},{"$f":"IF(AZ31=2,G31,0)","v":0},{"$f":"IF(AZ31=3,G31,0)","v":0},{"$f":"IF(AZ31=4,G31,0)","v":0},{"$f":"IF(AZ31=5,G31,0)","v":0},null,null,null,null,null,null,null,null,null,null,null,null,null,null,null,null,null,null,null,null,null,1,1]
[null,null,"ČOV - Potrubí:2,65",null,2.65,null,null,null,null,null,null,null,"ČOV - Potrubí:2,65"]
[7,"199000002R00","Poplatek za skládku horniny 1- 7 č. dle katal. odpadů 17 05 04","m3",10.5,0,{"$f":"E33*F33","v":0},0,{"$f":"E33*H33","v":0},0,{"$f":"E33*J33","v":0},null,null,null,2,null,null,null,null,null,null,null,null,null,null,null,1,1,1,null,null,null,null,null,null,null,null,null,null,null,null,null,null,null,null,null,null,null,null,null,null,1,{"$f":"IF(AZ33=1,G33,0)","v":0},{"$f":"IF(AZ33=2,G33,0)","v":0},{"$f":"IF(AZ33=3,G33,0)","v":0},{"$f":"IF(AZ33=4,G33,0)","v":0},{"$f":"IF(AZ33=5,G33,0)","v":0},null,null,null,null,null,null,null,null,null,null,null,null,null,null,null,null,null,null,null,null,null,1,1]
[null,null,"Výkopy:",null,0,null,null,null,null,null,null,null,"Výkopy:"]
[null,null,"ČOV - výkopy pro dmychadlo, potrubí :3,20*3,00*1,50",null,14.4,null,null,null,null,null,null,null,"ČOV - výkopy pro dmychadlo, potrubí :3,20*3,00*1,50"]
[null,null,"ČOV -výkopy pro RŠ:1,60*1,60*2,50",null,6.4,null,null,null,null,null,null,null,"ČOV -výkopy pro RŠ:1,60*1,60*2,50"]
[null,null,"Odpočet zásypů zeminou:-10,3000",null,-10.3,null,null,null,null,null,null,null,"Odpočet zásypů zeminou:-10,3000"]
[8,"58337309.R","Štěrkopísek frakce 0-4 tř.B","t",5.2807000000000004,0,{"$f":"E38*F38","v":0},1,{"$f":"E38*H38","v":5.2807000000000004},null,{"$f":"E38*J38","v":0},null,null,null,2,null,null,null,null,null,null,null,null,null,null,null,3,1,"58337309.R",null,null,null,null,null,null,null,null,null,null,null,null,null,null,null,null,null,null,null,null,null,null,1,{"$f":"IF(AZ38=1,G38,0)","v":0},{"$f":"IF(AZ38=2,G38,0)","v":0},{"$f":"IF(AZ38=3,G38,0)","v":0},{"$f":"IF(AZ38=4,G38,0)","v":0},{"$f":"IF(AZ38=5,G38,0)","v":0},null,null,null,null,null,null,null,null,null,null,null,null,null,null,null,null,null,null,null,null,null,3,1]
[null,null,"ČOV - Potrubí:2,65*1,973*1,01",null,5.2807000000000004,null,null,null,null,null,null,null,"ČOV - Potrubí:2,65*1,973*1,01"]
[null,"Celkem za","1 Zemní práce",null,null,null,{"$f":"SUM(G7:G39)","v":0},null,{"$f":"SUM(I7:I39)","v":5.2807000000000004},null,{"$f":"SUM(K7:K39)","v":0},null,null,null,4,null,null,null,null,null,null,null,null,null,null,null,null,null,null,null,null,null,null,null,null,null,null,null,null,null,null,null,null,null,null,null,null,null,null,null,null,null,{"$f":"SUM(BA7:BA39)","v":0},{"$f":"SUM(BB7:BB39)","v":0},{"$f":"SUM(BC7:BC39)","v":0},{"$f":"SUM(BD7:BD39)","v":0},{"$f":"SUM(BE7:BE39)","v":0}]
["Díl:","3","Svislé a kompletní konstrukce",null,null,null,null,null,null,null,null,null,null,null,1]
[9,"380321341R00","Beton komplet.konstrukcí železový C 20/25 do 15 cm C 20/25 - XC2","m3",3.0899000000000001,null,{"$f":"E42*F42","v":0},2.6102799999999999,{"$f":"E42*H42","v":8.0655041720000007},0,{"$f":"E42*J42","v":0},null,null,null,2,null,null,null,null,null,null,null,null,null,null,null,1,1,1,null,null,null,null,null,null,null,null,null,null,null,null,null,null,null,null,null,null,null,null,null,null,1,{"$f":"IF(AZ42=1,G42,0)","v":0},{"$f":"IF(AZ42=2,G42,0)","v":0},{"$f":"IF(AZ42=3,G42,0)","v":0},{"$f":"IF(AZ42=4,G42,0)","v":0},{"$f":"IF(AZ42=5,G42,0)","v":0},null,null,null,null,null,null,null,null,null,null,null,null,null,null,null,null,null,null,null,null,null,1,1]
[null,null,"ČOV - Obetonování konstrukce plastové nádrže pro dmychadlo:",null,0,null,null,null,null,null,null,null,"ČOV - Obetonování konstrukce plastové nádrže pro dmychadlo:"]
[null,null,"Dno:1,90*1,70*0,10*1,05",null,0.3392,null,null,null,null,null,null,null,"Dno:1,90*1,70*0,10*1,05"]
[null,null,"Zabetonování vnitřního dna:1,40*1,20*0,15*1,05",null,0.2646,null,null,null,null,null,null,null,"Zabetonování vnitřního dna:1,40*1,20*0,15*1,05"]
[null,null,"Stěny:(1,90+1,20)*2*1,215*0,25*1,05",null,1.9774,null,null,null,null,null,null,null,"Stěny:(1,90+1,20)*2*1,215*0,25*1,05"]
[null,null,"Strop:1,90*1,70*0,15*1,05",null,0.50870000000000004,null,null,null,null,null,null,null,"Strop:1,90*1,70*0,15*1,05"]
[null,"Celkem za","3 Svislé a kompletní konstrukce",null,null,null,{"$f":"SUM(G41:G47)","v":0},null,{"$f":"SUM(I41:I47)","v":8.0655041720000007},null,{"$f":"SUM(K41:K47)","v":0},null,null,null,4,null,null,null,null,null,null,null,null,null,null,null,null,null,null,null,null,null,null,null,null,null,null,null,null,null,null,null,null,null,null,null,null,null,null,null,null,null,{"$f":"SUM(BA41:BA47)","v":0},{"$f":"SUM(BB41:BB47)","v":0},{"$f":"SUM(BC41:BC47)","v":0},{"$f":"SUM(BD41:BD47)","v":0},{"$f":"SUM(BE41:BE47)","v":0}]
["Díl:","38","Kompletní konstrukce",null,null,null,null,null,null,null,null,null,null,null,1]
[10,"380361007R00","Výztuž kompletních konstr. ocel BSt 500B včetně KARI sítě 8/150 x 8/150","t",0.1179,0,{"$f":"E50*F50","v":0},1.02535,{"$f":"E50*H50","v":0.12088876500000001},0,{"$f":"E50*J50","v":0},null,null,null,2,null,null,null,null,null,null,null,null,null,null,null,1,1,1,null,null,null,null,null,null,null,null,null,null,null,null,null,null,null,null,null,null,null,null,null,null,1,{"$f":"IF(AZ50=1,G50,0)","v":0},{"$f":"IF(AZ50=2,G50,0)","v":0},{"$f":"IF(AZ50=3,G50,0)","v":0},{"$f":"IF(AZ50=4,G50,0)","v":0},{"$f":"IF(AZ50=5,G50,0)","v":0},null,null,null,null,null,null,null,null,null,null,null,null,null,null,null,null,null,null,null,null,null,1,1]
[null,null,"ČOV - Obetonování konstrukce plastové nádrže pro dmychadlo:",null,0,null,null,null,null,null,null,null,"ČOV - Obetonování konstrukce plastové nádrže pro dmychadlo:"]
[null,null,"Dno:1,90*1,70*0,0088*1,2",null,3.4099999999999998E-2,null,null,null,null,null,null,null,"Dno:1,90*1,70*0,0088*1,2"]
[null,null,"Stěny:(1,90+1,20)*2*1,215*0,0055*1,2",null,4.9700000000000001E-2,null,null,null,null,null,null,null,"Stěny:(1,90+1,20)*2*1,215*0,0055*1,2"]
[null,null,"Strop:1,90*1,70*0,0088*1,2",null,3.4099999999999998E-2,null,null,null,null,null,null,null,"Strop:1,90*1,70*0,0088*1,2"]
[null,"Celkem za","38 Kompletní konstrukce",null,null,null,{"$f":"SUM(G49:G54)","v":0},null,{"$f":"SUM(I49:I54)","v":0.12088876500000001},null,{"$f":"SUM(K49:K54)","v":0},null,null,null,4,null,null,null,null,null,null,null,null,null,null,null,null,null,null,null,null,null,null,null,null,null,null,null,null,null,null,null,null,null,null,null,null,null,null,null,null,null,{"$f":"SUM(BA49:BA54)","v":0},{"$f":"SUM(BB49:BB54)","v":0},{"$f":"SUM(BC49:BC54)","v":0},{"$f":"SUM(BD49:BD54)","v":0},{"$f":"SUM(BE49:BE54)","v":0}]
["Díl:","45","Podkladní a vedlejší konstrukce",null,null,null,null,null,null,null,null,null,null,null,1]
[11,"451572111R00","Lože pod potrubí z kameniva těženého 0 - 4 mm ","m3",0.85,0,{"$f":"E57*F57","v":0},0.43051,{"$f":"E57*H57","v":0.36593349999999997},0,{"$f":"E57*J57","v":0},null,null,null,2,null,null,null,null,null,null,null,null,null,null,null,1,1,1,null,null,null,null,null,null,null,null,null,null,null,null,null,null,null,null,null,null,null,null,null,null,1,{"$f":"IF(AZ57=1,G57,0)","v":0},{"$f":"IF(AZ57=2,G57,0)","v":0},{"$f":"IF(AZ57=3,G57,0)","v":0},{"$f":"IF(AZ57=4,G57,0)","v":0},{"$f":"IF(AZ57=5,G57,0)","v":0},null,null,null,null,null,null,null,null,null,null,null,null,null,null,null,null,null,null,null,null,null,1,1]
[null,null,"ČOV - Potrubí:0,85",null,0.85,null,null,null,null,null,null,null,"ČOV - Potrubí:0,85"]
[null,"Celkem za","45 Podkladní a vedlejší konstrukce",null,null,null,{"$f":"SUM(G56:G58)","v":0},null,{"$f":"SUM(I56:I58)","v":0.36593349999999997},null,{"$f":"SUM(K56:K58)","v":0},null,null,null,4,null,null,null,null,null,null,null,null,null,null,null,null,null,null,null,null,null,null,null,null,null,null,null,null,null,null,null,null,null,null,null,null,null,null,null,null,null,{"$f":"SUM(BA56:BA58)","v":0},{"$f":"SUM(BB56:BB58)","v":0},{"$f":"SUM(BC56:BC58)","v":0},{"$f":"SUM(BD56:BD58)","v":0},{"$f":"SUM(BE56:BE58)","v":0}]
["Díl:","8","Trubní vedení",null,null,null,null,null,null,null,null,null,null,null,1]
[12,"894412312RAB","Šachta, DN 1000 stěna 120 mm, dno přímé V max. 50 hloubka dna 2,46 m poklop litina 40 t","kus",1,0,{"$f":"E61*F61","v":0},3.7197100000000001,{"$f":"E61*H61","v":3.7197100000000001},0,{"$f":"E61*J61","v":0},null,null,null,2,null,null,null,null,null,null,null,null,null,null,null,1,1,1,null,null,null,null,null,null,null,null,null,null,null,null,null,null,null,null,null,null,null,null,null,null,1,{"$f":"IF(AZ61=1,G61,0)","v":0},{"$f":"IF(AZ61=2,G61,0)","v":0},{"$f":"IF(AZ61=3,G61,0)","v":0},{"$f":"IF(AZ61=4,G61,0)","v":0},{"$f":"IF(AZ61=5,G61,0)","v":0},null,null,null,null,null,null,null,null,null,null,null,null,null,null,null,null,null,null,null,null,null,1,1]
[null,null,"V položce je zakalkulováno: dodávka a osazení betonového dna, betonové skruže, šachetního konusu, vyrovnávacího prstence vložení těsnění mezi dílce a itinového poklopu D400. ",null,null,null,null,null,null,null,null,"V položce je zakalkulováno: dodávka a osazení betonového dna, betonové skruže, šachetního konusu, vyrovnávacího prstence vložení těsnění mezi dílce a itinového poklopu D400. ",null,null,3]
[null,null,"Podbetonování šachtového dna betonem tl 15 cm.",null,null,null,null,null,null,null,null,"Podbetonování šachtového dna betonem tl 15 cm.",null,null,3]
[null,null,"V max. 50 vtok/výtok do max. DN 300.",null,null,null,null,null,null,null,null,"V max. 50 vtok/výtok do max. DN 300.",null,null,3]
[null,null,"Úprava šachtového dna pro osazení \"Parshallova žlabu.",null,null,null,null,null,null,null,null,"Úprava šachtového dna pro osazení \"Parshallova žlabu.",null,null,3]
[null,null,"Součástí položky je i úprava stávajícího odtokového potrubí PVC DN200 pro vsazení šachty.",null,null,null,null,null,null,null,null,"Součástí položky je i úprava stávajícího odtokového potrubí PVC DN200 pro vsazení šachty.",null,null,3]
[null,null,"Šachta na odtoku z ČOV pro osazení \"Parshallova žlabu\" DN1000:1",null,1,null,null,null,null,null,null,null,"Šachta na odtoku z ČOV pro osazení \"Parshallova žlabu\" DN1000:1"]
[null,"Celkem za","8 Trubní vedení",null,null,null,{"$f":"SUM(G60:G67)","v":0},null,{"$f":"SUM(I60:I67)","v":3.7197100000000001},null,{"$f":"SUM(K60:K67)","v":0},null,null,null,4,null,null,null,null,null,null,null,null,null,null,null,null,null,null,null,null,null,null,null,null,null,null,null,null,null,null,null,null,null,null,null,null,null,null,null,null,null,{"$f":"SUM(BA60:BA67)","v":0},{"$f":"SUM(BB60:BB67)","v":0},{"$f":"SUM(BC60:BC67)","v":0},{"$f":"SUM(BD60:BD67)","v":0},{"$f":"SUM(BE60:BE67)","v":0}]
["Díl:","99","Staveništní přesun hmot",null,null,null,null,null,null,null,null,null,null,null,1]
[13,"998142251R00","Přesun hmot, nádrže betonové monolit. výšky 25 m ","t",17.552736437,0,{"$f":"E70*F70","v":0},0,{"$f":"E70*H70","v":0},null,{"$f":"E70*J70","v":0},null,null,null,2,null,null,null,null,null,null,null,null,null,null,null,7,1,2,null,null,null,null,null,null,null,null,null,null,null,null,null,null,null,null,null,null,null,null,null,null,1,{"$f":"IF(AZ70=1,G70,0)","v":0},{"$f":"IF(AZ70=2,G70,0)","v":0},{"$f":"IF(AZ70=3,G70,0)","v":0},{"$f":"IF(AZ70=4,G70,0)","v":0},{"$f":"IF(AZ70=5,G70,0)","v":0},null,null,null,null,null,null,null,null,null,null,null,null,null,null,null,null,null,null,null,null,null,7,1]
[null,"Celkem za","99 Staveništní přesun hmot",null,null,null,{"$f":"SUM(G69:G70)","v":0},null,{"$f":"SUM(I69:I70)","v":0},null,{"$f":"SUM(K69:K70)","v":0},null,null,null,4,null,null,null,null,null,null,null,null,null,null,null,null,null,null,null,null,null,null,null,null,null,null,null,null,null,null,null,null,null,null,null,null,null,null,null,null,null,{"$f":"SUM(BA69:BA70)","v":0},{"$f":"SUM(BB69:BB70)","v":0},{"$f":"SUM(BC69:BC70)","v":0},{"$f":"SUM(BD69:BD70)","v":0},{"$f":"SUM(BE69:BE70)","v":0}]
["Díl:","762","Konstrukce tesařské",null,null,null,null,null,null,null,null,null,null,null,1]
[14,"762521108RRX","Odstranění a zpětná montáž zakrytí ČOV fošnami ","m2",18,0,{"$f":"E73*F73","v":0},0,{"$f":"E73*H73","v":0},0,{"$f":"E73*J73","v":0},null,null,null,2,null,null,null,null,null,null,null,null,null,null,null,1,7,7,null,null,null,null,null,null,null,null,null,null,null,null,null,null,null,null,null,null,null,null,null,null,2,{"$f":"IF(AZ73=1,G73,0)","v":0},{"$f":"IF(AZ73=2,G73,0)","v":0},{"$f":"IF(AZ73=3,G73,0)","v":0},{"$f":"IF(AZ73=4,G73,0)","v":0},{"$f":"IF(AZ73=5,G73,0)","v":0},null,null,null,null,null,null,null,null,null,null,null,null,null,null,null,null,null,null,null,null,null,1,7]
[null,"Celkem za","762 Konstrukce tesařské",null,null,null,{"$f":"SUM(G72:G73)","v":0},null,{"$f":"SUM(I72:I73)","v":0},null,{"$f":"SUM(K72:K73)","v":0},null,null,null,4,null,null,null,null,null,null,null,null,null,null,null,null,null,null,null,null,null,null,null,null,null,null,null,null,null,null,null,null,null,null,null,null,null,null,null,null,null,{"$f":"SUM(BA72:BA73)","v":0},{"$f":"SUM(BB72:BB73)","v":0},{"$f":"SUM(BC72:BC73)","v":0},{"$f":"SUM(BD72:BD73)","v":0},{"$f":"SUM(BE72:BE73)","v":0}]
["Díl:","767","Konstrukce zámečnické",null,null,null,null,null,null,null,null,null,null,null,1]
[15,"767911120R00","Montáž oplocení z pletiva v.do 1,6 m,napínací drát ","m",10,0,{"$f":"E76*F76","v":0},0,{"$f":"E76*H76","v":0},0,{"$f":"E76*J76","v":0},null,null,null,2,null,null,null,null,null,null,null,null,null,null,null,1,7,7,null,null,null,null,null,null,null,null,null,null,null,null,null,null,null,null,null,null,null,null,null,null,2,{"$f":"IF(AZ76=1,G76,0)","v":0},{"$f":"IF(AZ76=2,G76,0)","v":0},{"$f":"IF(AZ76=3,G76,0)","v":0},{"$f":"IF(AZ76=4,G76,0)","v":0},{"$f":"IF(AZ76=5,G76,0)","v":0},null,null,null,null,null,null,null,null,null,null,null,null,null,null,null,null,null,null,null,null,null,1,7]
[null,null,"ČOV - Montáž části stávajícího oplocení (bez sloupků):10,00",null,10,null,null,null,null,null,null,null,"ČOV - Montáž části stávajícího oplocení (bez sloupků):10,00"]
[16,"767911821R00","Demontáž drátěného pletiva výšky do 1,6 m ","m",10,0,{"$f":"E78*F78","v":0},0,{"$f":"E78*H78","v":0},-1.98E-3,{"$f":"E78*J78","v":-1.9799999999999998E-2},null,null,null,2,null,null,null,null,null,null,null,null,null,null,null,1,7,7,null,null,null,null,null,null,null,null,null,null,null,null,null,null,null,null,null,null,null,null,null,null,2,{"$f":"IF(AZ78=1,G78,0)","v":0},{"$f":"IF(AZ78=2,G78,0)","v":0},{"$f":"IF(AZ78=3,G78,0)","v":0},{"$f":"IF(AZ78=4,G78,0)","v":0},{"$f":"IF(AZ78=5,G78,0)","v":0},null,null,null,null,null,null,null,null,null,null,null,null,null,null,null,null,null,null,null,null,null,1,7]
[null,null,"Demontáž oplocení pro opětovné použití",null,null,null,null,null,null,null,null,"Demontáž oplocení pro opětovné použití",null,null,3]
[null,null,"ČOV - Demontáž části stávajícího oplocení (bez sloupků):10,00",null,10,null,null,null,null,null,null,null,"ČOV - Demontáž části stávajícího oplocení (bez sloupků):10,00"]
[null,"Celkem za","767 Konstrukce zámečnické",null,null,null,{"$f":"SUM(G75:G80)","v":0},null,{"$f":"SUM(I75:I80)","v":0},null,{"$f":"SUM(K75:K80)","v":-1.9799999999999998E-2},null,null,null,4,null,null,null,null,null,null,null,null,null,null,null,null,null,null,null,null,null,null,null,null,null,null,null,null,null,null,null,null,null,null,null,null,null,null,null,null,null,{"$f":"SUM(BA75:BA80)","v":0},{"$f":"SUM(BB75:BB80)","v":0},{"$f":"SUM(BC75:BC80)","v":0},{"$f":"SUM(BD75:BD80)","v":0},{"$f":"SUM(BE75:BE80)","v":0}]
["Díl:","M21Č","Elektromontáže ČOV",null,null,null,null,null,null,null,null,null,null,null,1]
[17,"M21 10-0001.ČOV","D+M Elektroinstalace a telemetrie dle PD (Samostatná příloha)","kpl",1,{"$f":"SUM(M21Č_Elektroinstalace!G17)","v":0},{"$f":"E83*F83","v":0},0,{"$f":"E83*H83","v":0},null,{"$f":"E83*J83","v":0},null,null,null,2,null,null,null,null,null,null,null,null,null,null,null,11,3,1,null,null,null,null,null,null,null,null,null,null,null,null,null,null,null,null,null,null,null,null,null,null,4,{"$f":"IF(AZ83=1,G83,0)","v":0},{"$f":"IF(AZ83=2,G83,0)","v":0},{"$f":"IF(AZ83=3,G83,0)","v":0},{"$f":"IF(AZ83=4,G83,0)","v":0},{"$f":"IF(AZ83=5,G83,0)","v":0},null,null,null,null,null,null,null,null,null,null,null,null,null,null,null,null,null,null,null,null,null,11,3]
[null,"Celkem za","M21Č Elektromontáže ČOV",null,null,null,{"$f":"SUM(G82:G83)","v":0},null,{"$f":"SUM(I82:I83)","v":0},null,{"$f":"SUM(K82:K83)","v":0},null,null,null,4,null,null,null,null,null,null,null,null,null,null,null,null,null,null,null,null,null,null,null,null,null,null,null,null,null,null,null,null,null,null,null,null,null,null,null,null,null,{"$f":"SUM(BA82:BA83)","v":0},{"$f":"SUM(BB82:BB83)","v":0},{"$f":"SUM(BC82:BC83)","v":0},{"$f":"SUM(BD82:BD83)","v":0},{"$f":"SUM(BE82:BE83)","v":0}]
["Díl:","M35.4","Technologie ČOV",null,null,null,null,null,null,null,null,null,null,null,1]
[18,"M34 40-0001.ČOV","Výměna stávajícího dmychadla ","soubor",1,0,{"$f":"E86*F86","v":0},0,{"$f":"E86*H86","v":0},null,{"$f":"E86*J86","v":0},null,null,null,2,null,null,null,null,null,null,null,null,null,null,null,11,3,6,null,null,null,null,null,null,null,null,null,null,null,null,null,null,null,null,null,null,null,null,null,null,4,{"$f":"IF(AZ86=1,G86,0)","v":0},{"$f":"IF(AZ86=2,G86,0)","v":0},{"$f":"IF(AZ86=3,G86,0)","v":0},{"$f":"IF(AZ86=4,G86,0)","v":0},{"$f":"IF(AZ86=5,G86,0)","v":0},null,null,null,null,null,null,null,null,null,null,null,null,null,null,null,null,null,null,null,null,null,11,3]
[null,null,"Nové dmychadlo:",null,null,null,null,null,null,null,null,"Nové dmychadlo:",null,null,3]
[null,null,"Kubíček 3D19S-050K (1,1 kW, 50 Hz, 400 V, FM, PTC, EI3) vč. protihlukového krytu motoru a antikondenzačního vyhřívání motoru",null,null,null,null,null,null,null,null,"Kubíček 3D19T,S,A,B,C-050K (1,1 kW, 50 Hz, 400 V, FM, PTC, EI3)",null,null,3]
[null,null,"Součástí položky je kompletní výměna včetně všech pomocných prací a dodávek.",null,null,null,null,null,null,null,null,"Součástí položky je kompletní výměna včetně všech pomocných prací a dodávek.",null,null,3]
[19,"M34 40-0002.ČOV","D+M podzemního plastového protihlukového krytu Rozměr: 1400x1200x1200 mm","soubor",1,0,{"$f":"E90*F90","v":0},0,{"$f":"E90*H90","v":0},null,{"$f":"E90*J90","v":0},null,null,null,2,null,null,null,null,null,null,null,null,null,null,null,11,3,7,null,null,null,null,null,null,null,null,null,null,null,null,null,null,null,null,null,null,null,null,null,null,4,{"$f":"IF(AZ90=1,G90,0)","v":0},{"$f":"IF(AZ90=2,G90,0)","v":0},{"$f":"IF(AZ90=3,G90,0)","v":0},{"$f":"IF(AZ90=4,G90,0)","v":0},{"$f":"IF(AZ90=5,G90,0)","v":0},null,null,null,null,null,null,null,null,null,null,null,null,null,null,null,null,null,null,null,null,null,11,3]
[null,null,"Provedení dle projektové dokumentace.",null,null,null,null,null,null,null,null,"Provedení dle projektové dokumentace.",null,null,3]
[null,null,"Součástí položky je dodávka vodotěsné plastové nádrže, vodotěsného poklopů, odvětrání a přídlušných potrubí pro propojení s objektem ČOV a odpadním potrubím (bez obetonování). Součástí položky je osazení vodotěsných průchodek pro elektroinstalaci.",null,null,null,null,null,null,null,null,"Součástí položky je dodávka vodotěsné plastové nádrže, vodotěsného poklopů, odvětrání a přídlušných potrubí pro propojení s objektem ČOV a odpadním potrubím (bez obetonování). Součástí položky je osazení vodotěsných průchodek pro elektroinstalaci.",null,null,3]
[20,"M34 40-0003.ČOV","D+M čerpadla úkapů HCP GDR 400 včetně potrubí DN25","soubor",1,0,{"$f":"E93*F93","v":0},0,{"$f":"E93*H93","v":0},null,{"$f":"E93*J93","v":0},null,null,null,2,null,null,null,null,null,null,null,null,null,null,null,11,3,8,null,null,null,null,null,null,null,null,null,null,null,null,null,null,null,null,null,null,null,null,null,null,4,{"$f":"IF(AZ93=1,G93,0)","v":0},{"$f":"IF(AZ93=2,G93,0)","v":0},{"$f":"IF(AZ93=3,G93,0)","v":0},{"$f":"IF(AZ93=4,G93,0)","v":0},{"$f":"IF(AZ93=5,G93,0)","v":0},null,null,null,null,null,null,null,null,null,null,null,null,null,null,null,null,null,null,null,null,null,11,3]
[21,"M34 40-0004.ČOV","D+M Parshallova žlabu včetně kalibrace Výrobce Pars Aqua s.r.o. Typ P","soubor",1,0,{"$f":"E94*F94","v":0},0,{"$f":"E94*H94","v":0},null,{"$f":"E94*J94","v":0},null,null,null,2,null,null,null,null,null,null,null,null,null,null,null,11,3,9,null,null,null,null,null,null,null,null,null,null,null,null,null,null,null,null,null,null,null,null,null,null,4,{"$f":"IF(AZ94=1,G94,0)","v":0},{"$f":"IF(AZ94=2,G94,0)","v":0},{"$f":"IF(AZ94=3,G94,0)","v":0},{"$f":"IF(AZ94=4,G94,0)","v":0},{"$f":"IF(AZ94=5,G94,0)","v":0},null,null,null,null,null,null,null,null,null,null,null,null,null,null,null,null,null,null,null,null,null,11,3]
[null,null,"Výrobce Pars Aqua s.r.o. Typ P Qmin 0,26 l/s, Qmax 6,2 l/s.",null,null,null,null,null,null,null,null,"Výrobce Pars Aqua s.r.o. Typ P Qmin 0,26 l/s, Qmax 6,2 l/s.",null,null,3]
[null,null,"Součástí položky je provedení kalibrace žlabu autorizovanou osobou pro úřední měření průtoku.",null,null,null,null,null,null,null,null,"Součástí položky je provedení kalibrace žlabu autorizovanou osobou pro úřední měření průtoku.",null,null,3]
[22,"M34 40-0005.ČOV","D+M čerpadla oplachu pro ruční mytí Grundfos Unilift AP 35B.50.06.A1V, 230V, 1,0kW","soubor",1,0,{"$f":"E97*F97","v":0},0,{"$f":"E97*H97","v":0},null,{"$f":"E97*J97","v":0},null,null,null,2,null,null,null,null,null,null,null,null,null,null,null,11,3,10,null,null,null,null,null,null,null,null,null,null,null,null,null,null,null,null,null,null,null,null,null,null,4,{"$f":"IF(AZ97=1,G97,0)","v":0},{"$f":"IF(AZ97=2,G97,0)","v":0},{"$f":"IF(AZ97=3,G97,0)","v":0},{"$f":"IF(AZ97=4,G97,0)","v":0},{"$f":"IF(AZ97=5,G97,0)","v":0},null,null,null,null,null,null,null,null,null,null,null,null,null,null,null,null,null,null,null,null,null,11,3]
[null,null,"Jedná se o dodávku a montáž uvedeného čerpadla včetně 10 m kabelů a ovládání dle projektové dokumentace.",null,null,null,null,null,null,null,null,"Jedná se o dodávku a montáž uvedeného čerpadla včetně 10 m kabelů a ovládání dle projektové dokumentace.",null,null,3]
[null,"Celkem za","M35.4 Technologie ČOV",null,null,null,{"$f":"SUM(G85:G98)","v":0},null,{"$f":"SUM(I85:I98)","v":0},null,{"$f":"SUM(K85:K98)","v":0},null,null,null,4,null,null,null,null,null,null,null,null,null,null,null,null,null,null,null,null,null,null,null,null,null,null,null,null,null,null,null,null,null,null,null,null,null,null,null,null,null,{"$f":"SUM(BA85:BA98)","v":0},{"$f":"SUM(BB85:BB98)","v":0},{"$f":"SUM(BC85:BC98)","v":0},{"$f":"SUM(BD85:BD98)","v":0},{"$f":"SUM(BE85:BE98)","v":0}]

{"sheet":"M21Č_Elektroinstalace","index":4,"n_rows":207,"n_cols":7,"rows_kept":207,"cut":false,"hidden":false,"merged":[]}
[]
[null,null,"Akce    : Chuchelna - výměna technologie ČOV"]
[null,null,"Objekt : Elektročást"]
[null,null,"Zak. č. : P194/24"]
[null,null,"Datum : březen 2024"]
[]
[]
[null,null,"Rekapitulace:"]
[]
[null,1,"Rozváděč RMS 1 dle specifikace č. 1",1,"kpl.",{"$f":"G103","v":0},{"$f":"D10*F10","v":0}]
[null,2,"Materiál pro MaR a telemetrii dle specifikace č. 2",1,"kpl.",{"$f":"G125","v":0},0]
[null,3,"Elektromontážní materiál dle spacifikace č. 3",1,"kpl.",{"$f":"G164","v":0},{"$f":"D12*F12","v":0}]
[null,4,"Elektromontážní práce dle speifikace č. 4",1,"kpl.",{"$f":"G173","v":0},0]
[null,5,"Stavební a zámečnické práce dle specifikace č. 5",1,"kpl.",{"$f":"G182","v":0},0]
[null,6,"Zemní práce dle specifikace č. 6",1,"kpl.",{"$f":"G196","v":0},0]
[null,7,"Ostatní práce dle specifikace č. 7",1,"kpl.",{"$f":"G207","v":0},0]
[null,null,"Cena celkem bez DPH",null,null,null,{"$f":"SUM(G10:G16)","v":0}]
[]
[null,1,"Specifikace č. 1 - Rozváděč RMS 1:"]
[null,"pol.","popis","počet ","jedn.","cena/jedn.","cena celkem"]
[null,1,"skříň Schneider Thalassa, typ NSYPLM108G",1,"ks",null,{"$f":"D21*F21","v":0}]
[null,2,"montážní deska NSYMM108",1,"ks",null,0]
[null,3,"sada závěsných úchytu NSYPFPLM",1,"ks",null,0]
[null,4,"kapsa na dokumentaci A4, NSYDPA4",1,"ks",null,0]
[null,5,"ventilační mřížka NSYCAG125LPF",2,"ks",null,0]
[null,6,"hlavní vypínač VCF3, 400V, 3P, 63 A",1,"ks",null,0]
[null,7,"svodič přepětí FLP-12,5V/3",1,"ks",null,0]
[null,8,"pojistkový odpínač třípólový, 32A, 10 x 38 mm",1,"ks",null,0]
[null,9,"pojistka válcová 10 x 38 mm, gG, 2A",3,"ks",null,0]
[null,10,"fázové relé RM17TG20",1,"ks",null,0]
[null,11,"proudový chránič PF7-40/4/003-A",1,"ks",null,0]
[null,12,"proudový chránič s nadproud. spouští PFL7-10/1N/C//003-A",1,"ks",null,0]
[null,13,"proudový chránič s nadproud. spouští PFL7-16/1N/C//003-A",1,"ks",null,0]
[null,14,"jistič iC60H 1P 2A C",3,"ks",null,0]
[null,15,"jistič iC60H 1P 4A C",1,"ks",null,0]
[null,16,"jistič iC60H 1P 6A C",3,"ks",null,0]
[null,17,"jistič iC60H 1P 6A D",2,"ks",null,0]
[null,18,"jistič iC60H 1P 10A C",2,"ks",null,0]
[null,19,"jistič iC60H 1P 16A C",1,"ks",null,0]
[null,20,"jistič iC60H 3P 16A C",1,"ks",null,0]
[null,21,"pomocný kontakt iOF",2,"ks",null,0]
[null,22,"zásuvka 250V/16A na DIN lištu, iPC",1,"ks",null,0]
[null,23,"termostat na DIN lištu, NSYCCOTHC",1,"ks",null,0]
[null,24,"topné tělísko na DIN lištu NSYCR50WU2C",1,"ks",null,0]
[null,25,"ochranný jistič GV2L10",1,"ks",null,0]
[null,26,"motorový spínač GV2P08, 2,5 - 4 A",2,"ks",null,0]
[null,27,"pomocný kontakt GVAN 11",2,"ks",null,0]
[null,28,"stykač LC1D09P7",2,"ks",null,0]
[null,29,"pomocné relé RSB2A080BDPV",4,"ks",null,0]
[null,30,"frekvenční měnič ATV320U30N4B, 3 kW",1,"ks",null,0]
[null,31,"ovládač Harmony, typ XB5AD33 kpl,",3,"ks",null,0]
[null,32,"spínací jednotka ZBE101",4,"ks",null,0]
[null,33,"signálka Harmony XB5AVB1 kpl,",3,"ks",null,0]
[null,34,"signálka Harmony XB5AVB4 kpl.",3,"ks",null,0]
[null,35,"zdroj 24 V DC, ABLS1A24031, 3,13A, 75W",1,"ks",null,0]
[null,36,"zdroj DRC- 60A, 13,8V/2,8A",1,"ks",null,0]
[null,37,"baterie SA-214/1,3, 12V, 1,3A",1,"ks",null,0]
[null,38,"držák trubičkových pojistek WSI 4",7,"ks",null,0]
[null,39,"pojistka trubičková F 100 mA",6,"ks",null,0]
[null,40,"pojistka trubičková T 2 A",1,"ks",null,0]
[null,41,"PLC Modicon M221, 230 V 40 I/O, Ethernet, TM221CE40R",1,"ks",null,0]
[null,42,"zásuvný modul RS 242/485 pro PLC TN2X1, TMC2SL1",1,"ks",null,0]
[null,43,"paměťová karta TMA SD1",1,"ks",null,0]
[null,44,"modul 4 analogových vstupů a 2 analogových výstupů  TM3AM6G",1,"ks",null,0]
[null,45,"grafický panel Magelis s dotykovou obrazovkou, HMI ST6400",1,"ks",null,0]
[null,46,"switch MCSESU053FN0",1,"ks",null,0]
[null,47,"radiový modem MC14DV",1,"ks",null,0]
[null,48,"radiostanice Motorola Mototrbo DM1400 VHF",1,"ks",null,0]
[null,49,"držák radiostanice",1,"ks",null,0]
[null,50,"propojovací kabel 80 cm radiostanice – modem DB15FM",1,"ks",null,0]
[null,51,"prop. kabel Magelis COM1 (RJ45) a Modicon (RJ45), XBT Z9980",2,"ks",null,0]
[null,52,"propojovací kabel PLC – modem, RS 485",1,"ks",null,0]
[null,53,"svorka řadová RSA 16 hnědá",3,"ks",null,0]
[null,54,"svorka dvojitá OTL 35-2 zž",1,"ks",null,0]
[null,55,"svorka řadová RSA 4 bílá",16,"ks",null,0]
[null,56,"svorka řadová RSA 4 gobi",5,"ks",null,0]
[null,57,"svorka řadová RSA 4 sm",11,"ks",null,0]
[null,58,"svorka řadová RSA 4 PE",13,"ks",null,0]
[null,59,"svorka řadová RSA 2,5 tm",30,"ks",null,0]
[null,60,"svorka řadová RSA 2,5 PE",7,"ks",null,0]
[null,61,"hřeben dvoupólový RSA 2,5",2,"ks",null,0]
[null,62,"hřeben čtyřpólový RSA 2,5",2,"ks",null,0]
[null,63,"svorka koncová na DIN lištu",12,"ks",null,0]
[null,64,"přípojnice N 15, IP 20",2,"ks",null,0]
[null,65,"přípojnice PE 15, IP 20",2,"ks",null,{"$f":"D85*F85","v":0}]
[null,66,"vývodka Bimed Pg 21 ",1,"ks",null,0]
[null,67,"matice Bimed Pg 21 ",1,"ks",null,0]
[null,68,"vývodka Bimed Pg 16",1,"ks",null,0]
[null,69,"matice Bimed Pg 16",1,"ks",null,0]
[null,70,"vývodka Bimed Pg 13,5",8,"ks",null,0]
[null,71,"matice Bimed Pg 13,5",8,"ks",null,0]
[null,72,"vývodka Bimed Pg 11",8,"ks",null,0]
[null,73,"ucpávka Bimed Pz 11",5,"ks",null,0]
[null,74,"matice Bimed Pg 11",13,"ks",null,0]
[null,75,"elektroinstalační žlaby 40 x 60 mm děrované pro vodiče",6,"ks",null,0]
[null,76,"DIN lišta TS35",5,"ks",null,0]
[null,77," podpěra DIN lišty šikmá",6,"ks",null,0]
[null,78,"sada popisných a výstražných štítků",1,"ks",null,0]
[null,null,"základní materiál celkem",null,null,null,{"$f":"SUM(G21:G98)","v":0}]
[null,79,"materiál pomocný (vodiče, koncovky, popisy, bužírky apod.)",4,"%",{"$f":"G99","v":0},{"$f":"F100*D100/100","v":0}]
[null,null,"materiál celkem",null,null,null,{"$f":"SUM(G99:G100)","v":0}]
[null,80,"výroba rozváděče",16,"%",{"$f":"G101","v":0},{"$f":"D102*F102/100","v":0}]
[null,null,"Rozváděč RMS 1 celkem",null,null,null,{"$f":"SUM(G101:G102)","v":0}]
[]
[null,2,"Specifikace č. 2 - Materiál pro MaR a telemetrii:"]
[null,"pol.","popis","počet ","jedn.","cena/jedn.","cena celkem"]
[null,1,"LDO optický kyslíková sonda Hach-Lange s kabelem 10 m (O2 + T)",1,"ks",null,{"$f":"D107*F107","v":0}]
[null,2,"kontroler Hach-Lange SC4500",1,"ks",null,0]
[null,3,"nerezový kryt kontroleru",1,"ks",null,0]
[null,4,"nerezová ponorná řetězová armatura do 5ti metrů se závěsem",1,"ks",null,0]
[null,5,"průtokoměr Fiedler pro otevřené profily, typ Q2U-TB3-B ",1,"ks",null,0]
[null,6,"sonda měření průtoku Fiedler, typ US 1200 na Parshalův žlab PAZ2",1,"ks",null,0]
[null,7,"držák sondy ",1,"ks",null,0]
[null,8,"nosná konstrukce na Parshallův žlab P2",1,"ks",null,0]
[null,9,"plovák maximální hladiny NLN-105-1",1,"ks",null,0]
[null,10,"koncový spínač SA 204",3,"ks",null,0]
[null,11,"anténa ZZ 203",1,"ks",null,0]
[null,12,"držák základnové antény Z3001",1,"ks",null,0]
[null,13,"N konektor na kabel 10 mm šroubovací (RG213)",1,"ks",null,0]
[null,14,"konektor BNC na kabel RG213",1,"ks",null,0]
[null,15,"koaxiální kabel RG 213U",8,"m",null,0]
[null,16,"anténní stožár nerez, trubka 50/2 – 3 m s držáky – viz výkres D.1.5",1,"kpl.",null,0]
[null,null,"základní materiál celkem",null,null,null,{"$f":"SUM(G107:G122)","v":0}]
[null,17,"materiál pomocný",3,"%",{"$f":"G123","v":0},{"$f":"F124*D124/100","v":0}]
[null,null,"Materiál pro MaR a telemetrii celkem",null,null,null,{"$f":"SUM(G123:G124)","v":0}]
[]
[null,3,"Specifikace č. 3 - Elektromontážní materiál:"]
[null,"pol.","popis","počet ","jedn.","cena/jedn.","cena celkem"]
[null,1,"LED svítidlo nástěnné 230V/20W/IP55",6,"ks",null,{"$f":"D129*F129","v":0}]
[null,2,"LED svítidlo nástěnné 230V/50W/IP55",1,"ks",null,{"$f":"D130*F130","v":0}]
[null,3,"vypínač nástěnný na hořlavý podklad 250V/10A/IP44",2,"ks",null,0]
[null,4,"zásuvka nástěnná 400V/16A/IP44",1,"ks",null,0]
[null,5,"zásuvka nástěnná na hořlavý podklad 250V/16A/IP44",2,"ks",null,0]
[null,6,"skříňka nástěnná na hořlavý podklad s vypínačem 2P a zásuvkou, 250V/16A/IP44",1,"ks",null,0]
[null,7,"ekvipotenciální přípojnice HOP",1,"ks",null,0]
[null,8,"kabel LiYCY 2x 0,75 mm2",3,"m",null,0]
[null,9,"kabel LiYCY 7x 0,75 mm2",15,"m",null,0]
[null,10,"kabel JYTY 2x 1",23,"m",null,0]
[null,11,"kabel stíněný 2YSLCY-JB 4G 1,5",14,"m",null,0]
[null,12,"kabel CYKY-O 3x 1,5",6,"m",null,0]
[null,13,"kabel CYKY-J 3x 1,5",55,"m",null,0]
[null,14,"kabel CYKY-J 3x 2,5",52,"m",null,0]
[null,15,"kabel CYKY-J 5x 1,5",15,"m",null,0]
[null,16,"kabel CYKY-J 5x 2,5",4,"m",null,0]
[null,17,"kabel CYKY-J 7x 1,5",24,"m",null,0]
[null,18,"kabel TCEPKPFLE 1x4x0,8",16,"m",null,0]
[null,19,"chránička elektroinstalační plastová tuhá 25 mm vč. tvarovek a příchytek",57,"m",null,0]
[null,20,"chránička elektroinstalační plastová ohebná 22 mm",16,"m",null,0]
[null,21,"krabice plastová odbočná nástěnná, IP55",10,"ks",null,0]
[null,22,"vodič CY 6 zelenožlutý",32,"m",null,0]
[null,23,"vodič CY 10 zelenožlutý",3,"m",null,0]
[null,24,"svorka ochranného pospojování",10,"ks",null,0]
[null,25,"chránička Kopoflex 63/52",38,"m",null,0]
[null,26,"chránička Kopoflex 40/32",35,"m",null,0]
[null,27,"FeZn drát průměr 10 mm",12,"m",null,0]
[null,28,"svorka SR 03 FeZn izolovaná ",4,"ks",null,0]
[null,29,"svorka ST5 FeZn",1,"ks",null,0]
[null,30,"svorka SZ FeZn",1,"ks",null,0]
[null,31,"ochranná trubka svodu s držáky",1,"ks",null,0]
[null,32,"označovací štítek svodu",1,"ks",null,0]
[null,33,"plastová zakrývací deska 150 x 1000 mm",36,"ks",null,0]
[null,null,"základní materiál celkem",null,null,null,{"$f":"SUM(G129:G161)","v":0}]
[null,34,"materiál pomocný",5,"%",{"$f":"G162","v":0},{"$f":"F163*D163/100","v":0}]
[null,null,"Elektromontážní materiál celkem",null,null,null,{"$f":"SUM(G162:G163)","v":0}]
[]
[null,4,"Specifikace č. 4 - Elektromontážní práce:"]
[null,"pol.","popis","počet ","jedn.","cena/jedn.","cena celkem"]
[null,1,"demontáže stávajícího elektrozařízení",16,"hod.",null,{"$f":"D168*F168","v":0}]
[null,2,"elektromontážní práce",120,"hod.",null,{"$f":"D169*F169","v":0}]
[null,3,"zajištění provizorního provozu po dobu provádění prací",16,"hod.",null,{"$f":"D170*F170","v":0}]
[null,null,"Součet",null,null,null,{"$f":"SUM(G168:G170)","v":0}]
[null,4,"PPV",6,"%",{"$f":"G171","v":0},{"$f":"F172*D172/100","v":0}]
[null,null,"Elektromontážní práce celkem",null,null,null,{"$f":"SUM(G171:G172)","v":0}]
[]
[null,5,"Specifikace č. 5 - Stavební a zámečnické práce:"]
[null,"pol.","popis","počet ","jedn.","cena/jedn.","cena celkem"]
[null,1,"pilíř elektro kpl. – viz výkres D.1.5",1,"kpl.",null,{"$f":"D177*F177","v":0}]
[null,2,"provedení prostupu do betonu průměru 40 mm a tloušťky 200 mm se zatěsněním proti vnikání vlhkosti",1,"ks",null,{"$f":"D178*F178","v":0}]
[null,3,"demontáž stávajícího elektropilíře včetně provizorního přepojení",1,"soubor",null,{"$f":"D179*F179","v":0}]
[null,null,"Součet",null,null,null,{"$f":"SUM(G177:G179)","v":0}]
[null,4,"PPV",6,"%",{"$f":"G180","v":0},{"$f":"F181*D181/100","v":0}]
[null,null,"Stavební a zámečnické práce celkem",null,null,null,{"$f":"SUM(G180:G181)","v":0}]
[]
[null,6,"Specifikace č. 6 - Zemní práce:"]
[null,"pol.","popis","počet ","jedn.","cena/jedn.","cena celkem"]
[null,1,"vytýčení trasy výkopů",26,"m",null,{"$f":"D186*F186","v":0}]
[null,2,"vytýčení stávajících podzemních sítí",1,"kpl.",null,0]
[null,3,"výkop 1,8 x 0,8 x 1 m pro základ pilíře elektro",1.44,"m3",null,0]
[null,4,"výkop 35 x 70 cm",26,"m",null,0]
[null,5,"kabelové lože 2x 10 cm s dodáním písku",26,"m",null,0]
[null,6,"zához rýhy 35 x 50 cm",26,"m",null,0]
[null,7,"rozprostření přebytečné zeminy v místě stavby",3,"m3",null,0]
[null,8,"úprava povrchu rýhy s osetím",13,"m2",null,0]
[null,null,"Součet",null,null,null,{"$f":"SUM(G186:G193)","v":0}]
[null,9,"PPV",6,"%",{"$f":"G194","v":0},{"$f":"F195*D195/100","v":0}]
[null,null,"Zemní práce celkem",null,null,null,{"$f":"SUM(G194:G195)","v":0}]
[]
[null,7,"Specifikace č. 7 - Ostatní práce:"]
[null,"pol.","popis","počet ","jedn.","cena/jedn.","cena celkem"]
[null,1,"zprovoznění měření rozpuštěného kyslíku technikem Hach-Lange",1,"ks",null,{"$f":"D200*F200","v":0}]
[null,2,"provedení výchozí revize elektrického zařízení a uzemnění",1,"ks",null,0]
[null,3,"zajištění stanoviska TIČR",1,"ks",null,0]
[null,4,"ostatní nespecifikované práce",16,"hod.",null,0]
[null,5,"zpracování dokumentace skutečného provedení",1,"kpl.",null,0]
[null,6,"vypracování software, jeho aplikace a zprovoznění komunikace s dispečinkem",1,"kpl.",null,0]
[null,7,"geodetické zaměření kabelových tras",26,"m",null,0]
[null,null,"Ostatní práce celkem",null,null,null,{"$f":"SUM(G200:G206)","v":0}]

{"sheet":"OaVNS","index":5,"n_rows":22,"n_cols":67,"rows_kept":22,"cut":false,"hidden":false,"merged":[[0,0,0,6],[2,0,2,1],[3,0,3,1],[3,4,3,6],[6,2,6,6]]}
["Položkový rozpočet "]
[]
["Stavba :",null,"3391 Chuchelna - výměna technologie ČOV",null,"Rozpočet:","OaVNS"]
["Objekt :",null,"OaVNS - Ostatní a vedlejší náklady stavby "]
[]
["P.č.","Číslo položky","Název položky","MJ","množství","cena / MJ","celkem (Kč)","Jednotková hmotnost","Celková hmotnost","Jednotková dem.hmot.","Celková dem.hmot."]
["Díl:","950","Ostatní náklady stavby"]
[1,"950 99-0001.ONS","Zajištění prostoru a vybudování zařízení staveniště včetně potřebných staveništních komunikací","soubor",1,null,{"$f":"SUM(E8*F8)","v":0},8.6899999999999998E-3,{"$f":"E8*H8","v":8.6899999999999998E-3},0,{"$f":"E8*J8","v":0},null,null,null,null,null,null,null,null,null,null,null,null,null,null,null,null,null,null,null,null,null,null,null,null,null,null,null,null,null,null,null,null,null,null,null,null,null,null,null,null,null,null,null,null,null,null,null,null,null,null,null,null,null,null,1,1]
[2,"950 99-0003.ONS","Zajištění bezpečnosti při provádění stavby ve smyslu bezpečnosti práce i ochrany životního prostředí a zeleně","soubor",1,null,{"$f":"SUM(E9*F9)","v":0}]
[3,"950 99-0005.ONS","Vytýčení stavby a hranic pozemků při provádění stavby ","soubor",1,null,0]
[4,"950 99-0013.ONS","Zajištění činnosti odpovědného geodeta zhotovitele","soubor",1,null,0]
[5,"950 99-0015.ONS","Zajištění čistoty na staveništi a v jeho okolí, zajištění každodenního čištění komunikací dotčených provozem zhotovitele","soubor",1,null,0]
[6,"950 99-0016.ONS","Fotodokumentace průběhu díla; zhotovitel zajistí a předá objednateli průběžnou fotodokumentaci realizace díla. Fotodokumentace bude dokladovat průběh díla a bude zejména dokumentovat části stavby a konstrukce před jejich zakrytím","soubor",1,null,0]
[7,"950 99-0017.ONS","Péče o nepředané objekty nebo jejich části a konstrukce stavby, jejich ošetřování a nutný rozsah pojištění","soubor",1,null,0,0,{"$f":"E14*H14","v":0},0,{"$f":"E14*J14","v":0},null,null,null,null,null,null,null,null,null,null,null,null,null,null,null,null,null,null,null,null,null,null,null,null,null,null,null,null,null,null,null,null,null,null,null,null,null,null,null,null,null,null,null,null,null,null,null,null,null,null,null,null,null,null,1,1]
[8,"950 99-0021.ONS","Inženýrská a kompletační činnost zhotovitele ","soubor",1,null,0]
[9,"950 99-0022.ONS","Zhotovení dokumentace skutečného provedení díla ","soubor",1,null,0]
[10,"950 99-0023.ONS","Geodetické zaměření stavby","soubor",1,null,0]
[11,"950 99-0026.ONS","Vyvážení splašků z objeku ČOV před  zahájením prací a během realizace s odvozem na ČOV Semily (cisterna) .","m3",300,null,0]
[null,"950 99-0027.ONS","Zpracování provozního řádu  ČOV","soubor",1,null,0]
[12,"950 99-0028.ONS","Ostatní činnosti nutné ke zdárnému provedení díla, které jsou vymezeny zejména v technické specifikaci stavby","soubor",1,null,0]
[]
[null,"ONS Celkem",null,null,null,null,{"$f":"SUM(G8:G20)","v":0}]